fUSD/lending_fUSD_20250113
["ID","MTS","AMOUNT","RATE_DAILY","PERIOD"]
[348706313,1736735442000,-18525.03482809,0.0001,2]
[348706314,1736735442012,-9977.50096804,0.0001,2]
[348706315,1736735442024,-2028.06118,0.0001,2]
[348706316,1736735442347,-503.07946341,9.999e-05,2]
[348706317,1736735442357,-504.87389153,9.999e-05,2]
[348706318,1736735442367,-10429.47191633,0.0001,2]
[348706319,1736735442379,-15166.04781821,0.0001,2]
[348706321,1736735442407,-818.2561766,0.0001,2]
[348706323,1736735442419,-32085.32726202,0.0001,2]
[348706325,1736735442434,-15341.7916547,0.0001,2]
[348706326,1736735442452,-2776.70500011,0.0001,2]
[348706340,1736735443061,-500.0,9.998e-05,2]
[348706341,1736735443075,-436.4977762,9.998e-05,2]
[348706342,1736735443084,-500.0,9.999e-05,2]
[348706343,1736735443094,-206.95627607,9.999e-05,2]
[348706344,1736735443104,-9875.81347958,0.0001,2]
[348706345,1736735443116,-901.45554085,0.0001,2]
[348706348,1736735445624,-168.172149,9.998e-05,2]
[348706349,1736735445635,-500.0,9.998e-05,2]
[348706350,1736735445644,-1092.56,9.998e-05,2]
[348706351,1736735445653,-500.0,9.999e-05,2]
[348706352,1736735445663,-500.79434294,9.999e-05,2]
[348706353,1736735445672,-1951.67348806,0.0001,2]
[348706354,1736735445686,-336.20107522,0.0001,2]
[348706355,1736735445958,-500.0,9.999e-05,2]
[348706356,1736735445968,-1.44138975,0.0001,2]
[348706358,1736735602314,500.0,8.494e-05,2]
[348706360,1736735632187,500.80964539,8.494e-05,2]
[348706361,1736735649585,500.0,8.494e-05,2]
[348706362,1736735659972,200.0,0.0001,4]
[348706364,1736735836125,769.98,8.219e-05,2]
[348706365,1736735881093,173.48,0.0001,4]
[348706367,1736736349971,2000.0,0.00023,120]
[348706368,1736736352020,250.0,8.893e-05,2]
[348706369,1736736355327,1000.0,8.893e-05,2]
[348706370,1736736454159,13344.47,8.892e-05,2]
[348706371,1736736485113,179.13,8.882e-05,2]
[348706374,1736736523659,220.59,8.931e-05,2]
[348706396,1736736631970,-250.0,8.988e-05,2]
[348706397,1736736631980,-298.95,9.023e-05,2]
[348706398,1736736631989,-467.23,9.116e-05,2]
[348706399,1736736631999,-395.2,9.135e-05,2]
[348706400,1736736632008,-250.0,9.195e-05,2]
[348706401,1736736632018,-283.71336898,9.195e-05,2]
[348706402,1736736632027,-54.90663102,9.233e-05,2]
[348706403,1736736632708,-95.09336898,9.233e-05,2]
[348706404,1736736632718,-970.21040073,9.452e-05,2]
[348706405,1736736632730,-387.645,9.452e-05,2]
[348706406,1736736632742,-3253.11203327,9.452e-05,2]
[348706407,1736736632751,-160.088,9.5e-05,2]
[348706408,1736736632760,-586.79996673,9.589e-05,2]
[348706409,1736736632772,-487.21003327,9.589e-05,2]
[348706410,1736736632782,-300.0,9.604e-05,2]
[348706411,1736736632792,-262.78996673,9.605e-05,2]
[348706412,1736736632923,-1832.1416959,9.605e-05,2]
[348706413,1736736632934,-1859.46357618,9.605e-05,2]
[348706415,1736736632946,-2023.74389123,9.605e-05,2]
[348706417,1736736632959,-1555.48465078,9.605e-05,2]
[348706425,1736736637825,-500.0,9.3e-05,3]
[348706426,1736736637835,-3486.37621918,9.605e-05,2]
[348706427,1736736637845,-19906.0,9.635e-05,2]
[348706428,1736736637855,-3787.09,9.67e-05,2]
[348706429,1736736637865,-500.0,9.699e-05,2]
[348706430,1736736637875,-501.0,9.726e-05,2]
[348706431,1736736637884,-772.19,9.765e-05,2]
[348706432,1736736637893,-772.19,9.765e-05,2]
[348706433,1736736637903,-771.47,9.765e-05,2]
[348706434,1736736637912,-500.0,9.864e-05,2]
[348706435,1736736637922,-500.0,9.869e-05,2]
[348706436,1736736637931,-150.0,9.898e-05,2]
[348706437,1736736637941,-2500.0,9.898e-05,2]
[348706438,1736736637951,-686.9392,9.899e-05,2]
[348706439,1736736637962,-3514.7,9.899e-05,2]
[348706440,1736736637972,-5000.0,9.899e-05,2]
[348706441,1736736637982,-4152.372277,9.9e-05,2]
[348706442,1736736637991,-668.78,9.9e-05,2]
[348706443,1736736638000,-4640.518,9.9e-05,2]
[348706444,1736736638010,-248.754,9.9e-05,2]
[348706445,1736736638019,-200.0,9.97e-05,2]
[348706446,1736736638028,-2324.0,9.973e-05,2]
[348706447,1736736638038,-500.89332155,9.973e-05,2]
[348706448,1736736638047,-159.86942036,9.973e-05,2]
[348706449,1736736638058,-500.0,9.973e-05,2]
[348706450,1736736638067,-200.0,9.978e-05,2]
[348706451,1736736638078,-200.0,9.98e-05,2]
[348706452,1736736638088,-200.0,9.983e-05,2]
[348706453,1736736638098,-200.0,9.984e-05,2]
[348706454,1736736638107,-6294.10234073,9.992e-05,2]
[348706455,1736736638116,-200.0,9.996e-05,2]
[348706456,1736736638125,-500.0,9.997e-05,2]
[348706457,1736736638135,-502.42012795,9.997e-05,2]
[348706458,1736736638144,-500.0,9.997e-05,2]
[348706459,1736736638153,-500.0,9.997e-05,2]
[348706460,1736736638164,-500.0,9.997e-05,2]
[348706461,1736736638173,-501.26273913,9.997e-05,2]
[348706462,1736736638182,-500.0,9.997e-05,2]
[348706463,1736736638191,-500.0,9.997e-05,2]
[348706465,1736736638201,-352.66939743,9.997e-05,2]
[348706466,1736736638210,-500.0,9.997e-05,2]
[348706468,1736736638219,-514.50691286,9.997e-05,2]
[348706470,1736736638229,-390.61433892,9.997e-05,2]
[348706472,1736736638238,-514.23961057,9.997e-05,2]
[348706475,1736736638247,-511.38390004,9.997e-05,2]
[348706477,1736736638256,-466.29863657,9.997e-05,2]
[348706479,1736736638265,-515.65722675,9.997e-05,2]
[348706481,1736736638275,-505.6617148,9.997e-05,2]
[348706483,1736736638284,-512.69871196,9.997e-05,2]
[348706485,1736736638293,-509.10541565,9.997e-05,2]
[348706487,1736736638302,-507.84338989,9.997e-05,2]
[348706489,1736736638312,-505.04306677,9.997e-05,2]
[348706491,1736736638321,-419.55790395,9.997e-05,2]
[348706493,1736736638330,-513.36847691,9.997e-05,2]
[348706495,1736736638340,-504.95951228,9.997e-05,2]
[348706497,1736736638349,-503.82888201,9.997e-05,2]
[348706499,1736736638358,-516.30479685,9.997e-05,2]
[348706501,1736736638367,-510.22433272,9.997e-05,2]
[348706504,1736736638376,-513.8354369,9.997e-05,2]
[348706505,1736736638385,-510.28492316,9.997e-05,2]
[348706507,1736736638394,-500.42636116,9.997e-05,2]
[348706509,1736736638403,-500.0,9.997e-05,2]
[348706511,1736736638413,-508.67765542,9.997e-05,2]
[348706513,1736736638422,-503.81914825,9.997e-05,2]
[348706515,1736736638436,-579.12348027,9.997e-05,2]
[348706517,1736736638444,-503.59115499,9.997e-05,2]
[348706519,1736736638454,-509.27048252,9.997e-05,2]
[348706521,1736736638463,-528.78005315,9.997e-05,2]
[348706523,1736736638474,-501.7574173,9.997e-05,2]
[348706525,1736736638483,-509.06313875,9.997e-05,2]
[348706527,1736736638492,-507.08838357,9.997e-05,2]
[348706529,1736736638501,-500.0,9.997e-05,2]
[348706531,1736736638510,-503.45168764,9.997e-05,2]
[348706533,1736736638519,-506.2272798,9.997e-05,2]
[348706535,1736736638529,-506.81285854,9.997e-05,2]
[348706537,1736736638538,-513.30027957,9.997e-05,2]
[348706539,1736736638547,-507.51349031,9.997e-05,2]
[348706541,1736736638556,-504.91128436,9.997e-05,2]
[348706543,1736736638565,-508.87333058,9.997e-05,2]
[348706545,1736736638574,-508.24146019,9.997e-05,2]
[348706547,1736736638583,-501.27635069,9.997e-05,2]
[348706549,1736736638592,-506.50414854,9.997e-05,2]
[348706551,1736736638601,-554.75395574,9.997e-05,2]
[348706553,1736736638610,-505.83554115,9.997e-05,2]
[348706554,1736736638620,-503.62291662,9.997e-05,2]
[348706555,1736736638629,-501.94746759,9.997e-05,2]
[348706556,1736736638638,-508.40356019,9.997e-05,2]
[348706557,1736736638647,-502.02053044,9.997e-05,2]
[348706558,1736736638656,-502.70389029,9.997e-05,2]
[348706559,1736736638665,-503.8703227,9.997e-05,2]
[348706560,1736736638674,-500.0,9.997e-05,2]
[348706561,1736736638686,-508.11856369,9.997e-05,2]
[348706562,1736736638695,-509.47627642,9.997e-05,2]
[348706563,1736736638705,-506.14516494,9.997e-05,2]
[348706564,1736736638714,-500.73405103,9.997e-05,2]
[348706565,1736736638723,-500.0,9.997e-05,2]
[348706566,1736736638731,-500.0,9.997e-05,2]
[348706567,1736736638741,-516.60472637,9.997e-05,2]
[348706568,1736736638750,-500.0,9.997e-05,2]
[348706569,1736736638761,-511.96629713,9.997e-05,2]
[348706570,1736736638770,-1495.85,9.997e-05,2]
[348706571,1736736638779,-504.33735113,9.997e-05,2]
[348706572,1736736638788,-507.29769404,9.997e-05,2]
[348706573,1736736638798,-506.70143625,9.997e-05,2]
[348706574,1736736638807,-511.27484688,9.997e-05,2]
[348706575,1736736638816,-513.48570351,9.997e-05,2]
[348706576,1736736638826,-508.6284504,9.997e-05,2]
[348706577,1736736638835,-864.93,9.997e-05,2]
[348706578,1736736638844,-500.0,9.997e-05,2]
[348706579,1736736638854,-507.88011088,9.997e-05,2]
[348706580,1736736638863,-1318.14,9.997e-05,2]
[348706581,1736736638872,-500.0,9.997e-05,2]
[348706582,1736736638882,-637.06783239,9.997e-05,2]
[348706583,1736736638891,-503.35536068,9.997e-05,2]
[348706584,1736736638900,-500.0,9.997e-05,2]
[348706585,1736736638909,-500.0,9.997e-05,2]
[348706586,1736736638918,-508.27484729,9.997e-05,2]
[348706587,1736736638927,-515.91,9.997e-05,2]
[348706588,1736736638936,-500.0,9.997e-05,2]
[348706589,1736736638946,-500.0,9.997e-05,2]
[348706590,1736736638955,-500.0,9.997e-05,2]
[348706591,1736736638964,-1033.42,9.997e-05,2]
[348706592,1736736638973,-509.27,9.997e-05,2]
[348706593,1736736638982,-506.15324609,9.997e-05,2]
[348706594,1736736638991,-504.00367027,9.997e-05,2]
[348706595,1736736639001,-544.07069387,9.997e-05,2]
[348706596,1736736639010,-500.0,9.997e-05,2]
[348706597,1736736639019,-501.01410645,9.997e-05,2]
[348706598,1736736639028,-500.0,9.997e-05,2]
[348706599,1736736639038,-500.0,9.997e-05,2]
[348706600,1736736639047,-500.0,9.997e-05,2]
[348706601,1736736639057,-500.0,9.997e-05,2]
[348706602,1736736639067,-500.0,9.998e-05,2]
[348706603,1736736639081,-460.52440345,9.998e-05,2]
[348706604,1736736639091,-500.0,9.998e-05,2]
[348706605,1736736639100,-500.0,9.998e-05,2]
[348706606,1736736639109,-518.59580669,9.998e-05,2]
[348706607,1736736639119,-500.0,9.998e-05,2]
[348706608,1736736639128,-508.27,9.998e-05,2]
[348706609,1736736639138,-501.6916105,9.998e-05,2]
[348706610,1736736639147,-500.0,9.998e-05,2]
[348706611,1736736639157,-500.0,9.998e-05,2]
[348706612,1736736639167,-500.0,9.998e-05,2]
[348706613,1736736639176,-527.73284386,9.998e-05,2]
[348706614,1736736639185,-500.0,9.998e-05,2]
[348706615,1736736639195,-500.0,9.998e-05,2]
[348706616,1736736639206,-500.0,9.998e-05,2]
[348706617,1736736639216,-500.0,9.998e-05,2]
[348706618,1736736639225,-506.49161331,9.998e-05,2]
[348706619,1736736639235,-500.0,9.998e-05,2]
[348706620,1736736639245,-515.99583368,9.998e-05,2]
[348706621,1736736639255,-500.0,9.998e-05,2]
[348706622,1736736639264,-500.0,9.998e-05,2]
[348706623,1736736639274,-503.90567971,9.998e-05,2]
[348706624,1736736639284,-500.0,9.998e-05,2]
[348706625,1736736639294,-500.0,9.998e-05,2]
[348706626,1736736639303,-534.77096528,9.998e-05,2]
[348706627,1736736639313,-501.13411333,9.998e-05,2]
[348706628,1736736639323,-500.0,9.998e-05,2]
[348706629,1736736639333,-500.0,9.998e-05,2]
[348706630,1736736639342,-500.0,9.998e-05,2]
[348706631,1736736639352,-500.0,9.998e-05,2]
[348706632,1736736639361,-500.68236271,9.998e-05,2]
[348706633,1736736639370,-500.0,9.998e-05,2]
[348706634,1736736639380,-500.0,9.998e-05,2]
[348706635,1736736639389,-615.48020087,9.998e-05,2]
[348706636,1736736639398,-509.60811223,9.998e-05,2]
[348706637,1736736639408,-500.0,9.998e-05,2]
[348706638,1736736639417,-500.0,9.998e-05,2]
[348706639,1736736639429,-500.0,9.998e-05,2]
[348706640,1736736639438,-503.39902757,9.998e-05,2]
[348706641,1736736639447,-500.0,9.998e-05,2]
[348706642,1736736639458,-500.0,9.998e-05,2]
[348706643,1736736639467,-500.0,9.998e-05,2]
[348706644,1736736639477,-500.0,9.998e-05,2]
[348706645,1736736639486,-500.0,9.998e-05,2]
[348706646,1736736639496,-500.0,9.998e-05,2]
[348706647,1736736639507,-406.94302106,9.998e-05,2]
[348706648,1736736639516,-500.0,9.998e-05,2]
[348706649,1736736639526,-500.0,9.998e-05,2]
[348706650,1736736639535,-500.0,9.998e-05,2]
[348706651,1736736639545,-531.12290679,9.998e-05,2]
[348706652,1736736639554,-500.0,9.998e-05,2]
[348706653,1736736639563,-500.0,9.998e-05,2]
[348706654,1736736639571,-514.09158691,9.998e-05,2]
[348706655,1736736639580,-514.273027,9.998e-05,2]
[348706656,1736736639589,-500.0,9.998e-05,2]
[348706657,1736736639598,-506.53833763,9.998e-05,2]
[348706658,1736736639607,-510.75851941,9.998e-05,2]
[348706659,1736736639616,-511.1531758,9.998e-05,2]
[348706660,1736736639626,-506.88358262,9.998e-05,2]
[348706661,1736736639636,-500.0,9.998e-05,2]
[348706662,1736736639645,-509.25954793,9.998e-05,2]
[348706663,1736736639654,-409.94887404,9.998e-05,2]
[348706664,1736736639663,-500.0,9.998e-05,2]
[348706665,1736736639673,-502.96632916,9.998e-05,2]
[348706666,1736736639682,-506.68015974,9.998e-05,2]
[348706667,1736736639691,-500.0,9.998e-05,2]
[348706668,1736736639700,-500.0,9.998e-05,2]
[348706669,1736736639711,-500.0,9.998e-05,2]
[348706670,1736736639931,-500.0,9.998e-05,2]
[348706671,1736736639940,-506.06594617,9.998e-05,2]
[348706672,1736736639950,-500.0,9.998e-05,2]
[348706673,1736736639961,-500.0,9.998e-05,2]
[348706674,1736736639971,-500.0,9.998e-05,2]
[348706675,1736736639980,-500.0,9.998e-05,2]
[348706676,1736736639990,-500.0,9.998e-05,2]
[348706677,1736736639999,-500.0,9.998e-05,2]
[348706678,1736736640008,-500.0,9.998e-05,2]
[348706679,1736736640017,-500.0,9.998e-05,2]
[348706680,1736736640027,-500.0,9.998e-05,2]
[348706681,1736736640037,-508.86392004,9.998e-05,2]
[348706682,1736736640047,-500.0,9.998e-05,2]
[348706683,1736736640057,-500.0,9.998e-05,2]
[348706684,1736736640067,-502.91684778,9.998e-05,2]
[348706685,1736736640076,-500.0,9.998e-05,2]
[348706686,1736736640085,-500.0,9.998e-05,2]
[348706687,1736736640095,-500.0,9.998e-05,2]
[348706688,1736736640104,-500.0,9.998e-05,2]
[348706689,1736736640113,-510.35574356,9.998e-05,2]
[348706690,1736736640123,-500.0,9.998e-05,2]
[348706691,1736736640132,-500.0,9.998e-05,2]
[348706692,1736736640142,-500.0,9.998e-05,2]
[348706693,1736736640151,-500.0,9.998e-05,2]
[348706694,1736736640160,-500.0,9.998e-05,2]
[348706695,1736736640170,-504.68075787,9.998e-05,2]
[348706696,1736736640180,-500.0,9.998e-05,2]
[348706697,1736736640190,-500.0,9.998e-05,2]
[348706698,1736736640200,-500.0,9.998e-05,2]
[348706699,1736736640212,-500.0,9.998e-05,2]
[348706700,1736736640222,-500.0,9.998e-05,2]
[348706701,1736736640231,-500.0,9.998e-05,2]
[348706702,1736736640241,-500.0,9.998e-05,2]
[348706703,1736736640251,-519.34711564,9.998e-05,2]
[348706704,1736736640261,-500.0,9.998e-05,2]
[348706705,1736736640270,-500.0,9.998e-05,2]
[348706706,1736736640279,-500.80923196,9.998e-05,2]
[348706707,1736736640289,-499.99860152,9.998e-05,2]
[348706708,1736736640298,-500.0,9.998e-05,2]
[348706709,1736736640307,-500.0,9.998e-05,2]
[348706710,1736736640316,-508.4108863,9.998e-05,2]
[348706711,1736736640326,-500.0,9.998e-05,2]
[348706712,1736736640336,-500.0,9.998e-05,2]
[348706713,1736736640345,-501.58493963,9.998e-05,2]
[348706714,1736736640355,-500.0,9.998e-05,2]
[348706715,1736736640365,-500.0,9.998e-05,2]
[348706716,1736736640374,-500.0,9.998e-05,2]
[348706717,1736736640384,-500.0,9.998e-05,2]
[348706718,1736736640394,-555.56992678,9.998e-05,2]
[348706719,1736736640403,-500.0,9.998e-05,2]
[348706720,1736736640412,-500.56457671,9.998e-05,2]
[348706721,1736736640424,-500.0,9.998e-05,2]
[348706722,1736736640434,-520.89227985,9.998e-05,2]
[348706723,1736736640443,-500.0,9.998e-05,2]
[348706724,1736736640452,-526.81258031,9.998e-05,2]
[348706725,1736736640463,-500.59029031,9.998e-05,2]
[348706726,1736736640473,-500.0,9.998e-05,2]
[348706727,1736736640482,-500.0,9.998e-05,2]
[348706728,1736736640491,-503.57857458,9.998e-05,2]
[348706729,1736736640502,-500.0,9.998e-05,2]
[348706730,1736736640512,-500.0,9.998e-05,2]
[348706731,1736736640521,-500.0,9.998e-05,2]
[348706732,1736736640531,-500.0,9.998e-05,2]
[348706733,1736736640540,-500.0,9.998e-05,2]
[348706734,1736736640549,-510.87272857,9.998e-05,2]
[348706735,1736736640559,-630.32,9.998e-05,2]
[348706736,1736736640569,-502.21263017,9.998e-05,2]
[348706737,1736736640579,-502.63534614,9.998e-05,2]
[348706738,1736736640589,-500.0,9.998e-05,2]
[348706739,1736736640599,-479.39796845,9.998e-05,2]
[348706740,1736736640609,-500.0,9.998e-05,2]
[348706741,1736736640618,-500.0,9.998e-05,2]
[348706742,1736736640629,-561.64709838,9.998e-05,2]
[348706743,1736736640639,-500.0,9.998e-05,2]
[348706744,1736736640648,-500.0,9.998e-05,2]
[348706745,1736736640658,-500.0,9.998e-05,2]
[348706746,1736736640668,-500.0,9.998e-05,2]
[348706747,1736736640678,-492.31436427,9.998e-05,2]
[348706748,1736736640687,-508.59971688,9.998e-05,2]
[348706749,1736736640696,-500.0,9.998e-05,2]
[348706750,1736736640706,-500.0,9.998e-05,2]
[348706751,1736736640715,-500.0,9.998e-05,2]
[348706752,1736736640725,-500.0,9.998e-05,2]
[348706753,1736736640734,-500.0,9.998e-05,2]
[348706754,1736736640744,-500.0,9.998e-05,2]
[348706755,1736736640753,-500.0,9.998e-05,2]
[348706756,1736736640763,-500.0,9.998e-05,2]
[348706757,1736736640773,-500.0,9.998e-05,2]
[348706758,1736736640785,-500.0,9.998e-05,2]
[348706759,1736736640794,-500.0,9.998e-05,2]
[348706760,1736736640803,-500.0,9.998e-05,2]
[348706761,1736736640812,-502.92272852,9.998e-05,2]
[348706762,1736736640822,-504.90022746,9.998e-05,2]
[348706763,1736736640831,-500.0,9.998e-05,2]
[348706764,1736736640841,-513.3945544,9.998e-05,2]
[348706765,1736736640851,-500.0,9.998e-05,2]
[348706766,1736736640860,-500.99656066,9.998e-05,2]
[348706767,1736736640869,-507.71515599,9.998e-05,2]
[348706768,1736736640879,-503.24426748,9.998e-05,2]
[348706769,1736736640889,-500.0,9.998e-05,2]
[348706770,1736736640898,-500.0,9.998e-05,2]
[348706771,1736736640907,-513.08232143,9.998e-05,2]
[348706772,1736736640917,-500.0,9.998e-05,2]
[348706773,1736736640927,-500.0,9.998e-05,2]
[348706774,1736736640935,-501.8373166,9.998e-05,2]
[348706775,1736736640945,-510.59539909,9.998e-05,2]
[348706776,1736736640954,-505.64901312,9.998e-05,2]
[348706777,1736736640965,-500.91663834,9.998e-05,2]
[348706778,1736736640974,-500.0,9.998e-05,2]
[348706779,1736736640983,-509.16192993,9.998e-05,2]
[348706780,1736736640993,-500.0,9.998e-05,2]
[348706781,1736736641002,-500.52082562,9.998e-05,2]
[348706782,1736736641011,-500.0,9.998e-05,2]
[348706783,1736736641020,-500.0,9.998e-05,2]
[348706784,1736736641030,-502.29192807,9.998e-05,2]
[348706785,1736736641041,-500.0,9.998e-05,2]
[348706786,1736736641051,-502.58057232,9.998e-05,2]
[348706787,1736736641061,-459.9495385,9.998e-05,2]
[348706788,1736736641071,-500.0,9.998e-05,2]
[348706789,1736736641081,-501.07976742,9.998e-05,2]
[348706790,1736736641091,-503.63074579,9.998e-05,2]
[348706791,1736736641101,-502.38317558,9.998e-05,2]
[348706792,1736736641111,-500.0,9.998e-05,2]
[348706793,1736736641120,-500.0,9.998e-05,2]
[348706794,1736736641129,-500.0,9.998e-05,2]
[348706795,1736736641139,-504.7369464,9.998e-05,2]
[348706796,1736736641148,-500.0,9.998e-05,2]
[348706797,1736736641157,-707.53,9.998e-05,2]
[348706798,1736736641166,-500.0,9.998e-05,2]
[348706799,1736736641175,-508.02128553,9.998e-05,2]
[348706800,1736736641184,-500.0,9.998e-05,2]
[348706801,1736736641193,-500.0,9.998e-05,2]
[348706802,1736736641203,-502.56001746,9.998e-05,2]
[348706803,1736736641213,-500.0,9.998e-05,2]
[348706804,1736736641223,-500.0,9.998e-05,2]
[348706805,1736736641232,-500.0,9.998e-05,2]
[348706806,1736736641242,-493.05199623,9.998e-05,2]
[348706807,1736736641252,-501.27886825,9.998e-05,2]
[348706808,1736736641261,-500.0,9.998e-05,2]
[348706809,1736736641271,-501.36850105,9.998e-05,2]
[348706810,1736736641280,-506.21752908,9.998e-05,2]
[348706811,1736736641289,-500.0,9.998e-05,2]
[348706812,1736736641299,-500.0,9.998e-05,2]
[348706813,1736736641307,-500.0,9.998e-05,2]
[348706814,1736736641317,-502.43930208,9.998e-05,2]
[348706815,1736736641326,-500.0,9.998e-05,2]
[348706816,1736736641335,-500.73978275,9.998e-05,2]
[348706817,1736736641344,-500.60805406,9.998e-05,2]
[348706818,1736736641353,-501.99,9.998e-05,2]
[348706819,1736736641363,-502.51226098,9.998e-05,2]
[348706820,1736736641372,-500.0,9.998e-05,2]
[348706821,1736736641381,-500.51980344,9.998e-05,2]
[348706822,1736736641390,-500.0,9.998e-05,2]
[348706823,1736736641399,-485.00115741,9.998e-05,2]
[348706824,1736736641408,-500.0,9.998e-05,2]
[348706825,1736736641417,-504.12822013,9.998e-05,2]
[348706826,1736736641429,-510.34884022,9.998e-05,2]
[348706827,1736736641438,-500.0,9.998e-05,2]
[348706828,1736736641447,-1055.74,9.998e-05,2]
[348706829,1736736641457,-500.0,9.998e-05,2]
[348706830,1736736641467,-506.66151837,9.998e-05,2]
[348706831,1736736641476,-503.42696722,9.998e-05,2]
[348706832,1736736641486,-500.0,9.998e-05,2]
[348706833,1736736641495,-500.0,9.998e-05,2]
[348706834,1736736641505,-506.06718889,9.998e-05,2]
[348706835,1736736641514,-500.0,9.998e-05,2]
[348706836,1736736641524,-492.99,9.998e-05,2]
[348706837,1736736641533,-505.11970303,9.998e-05,2]
[348706838,1736736641542,-500.0,9.998e-05,2]
[348706839,1736736641551,-509.25498199,9.998e-05,2]
[348706840,1736736641560,-500.0,9.998e-05,2]
[348706841,1736736641569,-509.05114112,9.998e-05,2]
[348706842,1736736641579,-500.0,9.998e-05,2]
[348706843,1736736641588,-500.0,9.998e-05,2]
[348706844,1736736641597,-1027.77,9.998e-05,2]
[348706845,1736736641606,-500.0,9.998e-05,2]
[348706846,1736736641615,-500.0,9.998e-05,2]
[348706847,1736736641624,-500.0,9.998e-05,2]
[348706848,1736736641634,-2739.82,9.998e-05,2]
[348706849,1736736641643,-500.0,9.998e-05,2]
[348706850,1736736641652,-505.53489425,9.998e-05,2]
[348706851,1736736641661,-508.61764682,9.998e-05,2]
[348706852,1736736641671,-500.0,9.998e-05,2]
[348706853,1736736641681,-736.03,9.998e-05,2]
[348706854,1736736641690,-504.33521165,9.998e-05,2]
[348706855,1736736641699,-500.0,9.998e-05,2]
[348706856,1736736641709,-500.0,9.998e-05,2]
[348706857,1736736641718,-500.0,9.998e-05,2]
[348706858,1736736641728,-500.0,9.998e-05,2]
[348706859,1736736641737,-1044.52,9.998e-05,2]
[348706860,1736736641746,-500.0,9.998e-05,2]
[348706861,1736736641755,-500.0,9.998e-05,2]
[348706862,1736736641765,-500.0,9.998e-05,2]
[348706863,1736736641774,-500.0,9.998e-05,2]
[348706864,1736736641783,-509.40205177,9.998e-05,2]
[348706865,1736736641793,-500.0,9.998e-05,2]
[348706866,1736736641802,-592.49031712,9.998e-05,2]
[348706867,1736736641811,-584.46016699,9.998e-05,2]
[348706868,1736736641820,-1463.08,9.998e-05,2]
[348706869,1736736641830,-500.0,9.998e-05,2]
[348706870,1736736641840,-540.65,9.998e-05,2]
[348706871,1736736641849,-500.0,9.998e-05,2]
[348706872,1736736641860,-500.0,9.998e-05,2]
[348706873,1736736641869,-500.0,9.998e-05,2]
[348706874,1736736641878,-500.0,9.998e-05,2]
[348706875,1736736641888,-500.0,9.998e-05,2]
[348706876,1736736641898,-522.53233494,9.998e-05,2]
[348706877,1736736641907,-810.09,9.998e-05,2]
[348706878,1736736641918,-500.0,9.998e-05,2]
[348706879,1736736641929,-500.0,9.998e-05,2]
[348706880,1736736641938,-705.14,9.998e-05,2]
[348706881,1736736641948,-500.0,9.998e-05,2]
[348706882,1736736641957,-934.93,9.998e-05,2]
[348706883,1736736641967,-500.0,9.998e-05,2]
[348706884,1736736641976,-510.11355619,9.998e-05,2]
[348706885,1736736641985,-3307.98,9.998e-05,2]
[348706886,1736736641995,-500.0,9.998e-05,2]
[348706887,1736736642004,-500.0,9.998e-05,2]
[348706888,1736736642013,-500.0,9.998e-05,2]
[348706889,1736736642022,-1874.08,9.998e-05,2]
[348706890,1736736642031,-500.63387881,9.998e-05,2]
[348706891,1736736642041,-500.0,9.998e-05,2]
[348706892,1736736642050,-500.0,9.998e-05,2]
[348706893,1736736642059,-500.0,9.998e-05,2]
[348706894,1736736642068,-500.0,9.998e-05,2]
[348706895,1736736642077,-508.9159864,9.998e-05,2]
[348706896,1736736642086,-500.0,9.998e-05,2]
[348706897,1736736642095,-511.48,9.998e-05,2]
[348706898,1736736642104,-1608.48,9.998e-05,2]
[348706899,1736736642113,-500.0,9.998e-05,2]
[348706900,1736736642122,-500.0,9.998e-05,2]
[348706901,1736736642131,-11805.218856,9.998e-05,2]
[348706902,1736736642140,-1953.32,9.998e-05,2]
[348706903,1736736642150,-540.10164977,9.998e-05,2]
[348706904,1736736642159,-500.0,9.998e-05,2]
[348706905,1736736642168,-500.0,9.998e-05,2]
[348706906,1736736642177,-500.0,9.998e-05,2]
[348706907,1736736642186,-353.85409278,9.998e-05,2]
[348706908,1736736642196,-500.0,9.998e-05,2]
[348706909,1736736642205,-500.0,9.998e-05,2]
[348706910,1736736642215,-11246.372567,9.998e-05,2]
[348706911,1736736642225,-887.96,9.998e-05,2]